fUST/lending_fUST_20240227
["ID","MTS","AMOUNT","RATE_DAILY","PERIOD"]
[315392016,1709004644586,-500.0,0.00020157,2]
[315392017,1709004644596,-500.0,0.00020157,2]
[315392018,1709004644607,-215.786596,0.00020157,2]
[315392019,1709004644616,-500.0,0.00020157,2]
[315392020,1709004644626,-500.0,0.00020157,2]
[315392021,1709004644635,-500.0,0.00020157,2]
[315392022,1709004644645,-500.0,0.00020157,2]
[315392023,1709004644654,-500.0,0.00020157,2]
[315392024,1709004644664,-500.0,0.00020157,2]
[315392025,1709004644673,-500.0,0.00020157,2]
[315392026,1709004644682,-500.0,0.00020157,2]
[315392027,1709004644692,-500.0,0.00020157,2]
[315392028,1709004644701,-500.0,0.00020157,2]
[315392029,1709004644711,-500.0,0.00020157,2]
[315392030,1709004644720,-500.0,0.00020157,2]
[315392031,1709004644729,-500.0,0.00020157,2]
[315392032,1709004644739,-500.0,0.00020157,2]
[315392033,1709004644749,-500.0,0.00020157,2]
[315392034,1709004644758,-500.0,0.00020157,2]
[315392035,1709004644767,-500.0,0.00020157,2]
[315392036,1709004644777,-500.0,0.00020157,2]
[315392037,1709004644787,-365.54447169,0.00020157,2]
[315392038,1709004644796,-500.0,0.00020157,2]
[315392039,1709004644805,-500.0,0.00020157,2]
[315392040,1709004644815,-500.0,0.00020157,2]
[315392041,1709004644824,-500.0,0.00020157,2]
[315392042,1709004644833,-500.0,0.00020157,2]
[315392043,1709004644842,-500.0,0.00020157,2]
[315392044,1709004644851,-500.0,0.00020157,2]
[315392045,1709004644860,-500.0,0.00020157,2]
[315392046,1709004644869,-500.0,0.00020157,2]
[315392047,1709004644878,-500.0,0.00020157,2]
[315392048,1709004644887,-500.0,0.00020157,2]
[315392049,1709004644897,-500.0,0.00020157,2]
[315392050,1709004644906,-500.0,0.00020157,2]
[315392051,1709004644915,-50000.0,0.00020158,5]
[315392052,1709004644925,-621.47,0.00020163,2]
[315392053,1709004644934,-621.47,0.00020163,2]
[315392054,1709004644943,-621.47,0.00020163,2]
[315392055,1709004644953,-621.47,0.00020163,2]
[315392056,1709004644962,-22404.45736464,0.00020164,5]
[315392057,1709004644972,-103630.8685981,0.00020164,2]
[315392058,1709004644982,-306.0,0.00020192,2]
[315392059,1709004644993,-426.8916076,0.00020192,2]
[315392060,1709004645003,-256.9223019,0.00020192,2]
[315392061,1709004645012,-1596.90371537,0.00020245,2]
[315392062,1709004645021,-621.47,0.00020272,2]
[315392063,1709004645031,-621.47,0.00020272,2]
[315392064,1709004645041,-500.0,0.00020273,2]
[315392065,1709004645053,-500.0,0.00020273,2]
[315392066,1709004645062,-500.0,0.00020273,2]
[315392067,1709004645072,-500.0,0.00020273,2]
[315392068,1709004645082,-247.16884376,0.00020273,2]
[315392069,1709004645092,-547.67624046,0.00020273,2]
[315392070,1709004645102,-500.0,0.00020273,2]
[315392071,1709004645111,-1818.64,0.00020273,2]
[315392072,1709004645121,-1167.33,0.00020273,2]
[315392073,1709004645131,-633.64,0.00020273,2]
[315392074,1709004645141,-700.33,0.00020273,2]
[315392075,1709004645150,-500.0,0.00020273,2]
[315392076,1709004645160,-316.02608932,0.00020273,2]
[315392077,1709004645169,-410.31382454,0.00020273,2]
[315392078,1709004645178,-1801.3,0.00020273,2]
[315392079,1709004645188,-500.0,0.00020273,2]
[315392080,1709004645197,-1459.01,0.00020273,2]
[315392081,1709004645206,-500.0,0.00020273,2]
[315392082,1709004645216,-1171.05,0.00020273,2]
[315392083,1709004645225,-530.39,0.00020273,2]
[315392084,1709004645235,-1342.6,0.00020273,2]
[315392085,1709004645244,-783.19,0.00020273,2]
[315392087,1709004645253,-283.49549148,0.00020273,2]
[315392088,1709004645263,-537.61,0.00020273,2]
[315392089,1709004645273,-563.31,0.00020273,2]
[315392090,1709004645283,-9006.86,0.00020273,2]
[315392091,1709004645293,-1277.53,0.00020273,2]
[315392092,1709004645302,-500.0,0.00020273,2]
[315392093,1709004645311,-3047.32,0.00020273,2]
[315392094,1709004645321,-2308.41,0.00020273,2]
[315392095,1709004645330,-2245.85,0.00020273,2]
[315392096,1709004645339,-715.87,0.00020273,2]
[315392097,1709004645348,-1757.64,0.00020273,2]
[315392098,1709004645357,-500.0,0.00020273,2]
[315392100,1709004645366,-500.0,0.00020273,2]
[315392102,1709004645375,-16325.28,0.00020273,2]
[315392105,1709004645383,-155.85229831,0.00020273,2]
[315392107,1709004645393,-2110.14,0.00020273,2]
[315392110,1709004645402,-500.0,0.00020273,2]
[315392113,1709004645412,-1864.2,0.00020273,2]
[315392115,1709004645424,-1080.31,0.00020273,2]
[315392117,1709004645433,-500.0,0.00020273,2]
[315392120,1709004645442,-551.86,0.00020273,2]
[315392125,1709004645541,-1064.93,0.00020273,2]
[315392126,1709004645550,-561.43398342,0.00020273,2]
[315392127,1709004645559,-1746.04,0.00020273,2]
[315392128,1709004645568,-6308.39,0.00020273,2]
[315392129,1709004645577,-500.0,0.00020273,2]
[315392130,1709004645586,-15828.98,0.00020273,2]
[315392131,1709004645594,-500.0,0.00020273,2]
[315392132,1709004645604,-3154.11,0.00020273,2]
[315392133,1709004645613,-500.0,0.00020273,2]
[315392134,1709004645622,-3387.94,0.00020273,2]
[315392135,1709004645631,-813.05,0.00020273,2]
[315392136,1709004645640,-1175.4,0.00020273,2]
[315392137,1709004645649,-2843.33,0.00020273,2]
[315392139,1709004645658,-942.32,0.00020273,2]
[315392140,1709004645667,-1168.45,0.00020273,2]
[315392141,1709004645677,-906.42,0.00020273,2]
[315392142,1709004645686,-307.3867728,0.00020274,2]
[315392143,1709004645695,-1320.04407207,0.00020284,2]
[315392144,1709004645704,-1213.56535489,0.00020328,2]
[315392145,1709004645713,-1596.90371537,0.00020339,2]
[315392147,1709004645722,-1596.90371537,0.00020432,2]
[315392148,1709004645731,-75402.60407784,0.00020484,2]
[315392149,1709004645740,-166.666666,0.00020524,2]
[315392150,1709004645749,-1596.90371537,0.00020526,2]
[315392151,1709004645758,-372.16,0.00020538,3]
[315392152,1709004645767,-621.47,0.00020545,2]
[315392153,1709004645777,-621.47,0.00020546,2]
[315392154,1709004645786,-621.47,0.00020546,2]
[315392155,1709004645795,-621.47,0.00020546,2]
[315392156,1709004645804,-621.47,0.00020546,2]
[315392157,1709004645813,-621.47,0.00020546,2]
[315392158,1709004645823,-621.58,0.00020546,2]
[315392159,1709004645832,-500.0,0.00020547,2]
[315392160,1709004645841,-500.0,0.00020547,2]
[315392161,1709004645850,-500.0,0.00020547,2]
[315392162,1709004645859,-500.0,0.00020547,2]
[315392163,1709004645868,-500.0,0.00020547,2]
[315392164,1709004645877,-1818.64,0.00020547,2]
[315392165,1709004645886,-1167.33,0.00020547,2]
[315392166,1709004645895,-633.64,0.00020547,2]
[315392167,1709004645904,-700.33,0.00020547,2]
[315392168,1709004645913,-500.0,0.00020547,2]
[315392169,1709004645922,-1801.3,0.00020547,2]
[315392170,1709004645932,-500.0,0.00020547,2]
[315392171,1709004645941,-1459.01,0.00020547,2]
[315392172,1709004645950,-500.0,0.00020547,2]
[315392173,1709004645959,-1171.05,0.00020547,2]
[315392174,1709004645968,-530.39,0.00020547,2]
[315392175,1709004645978,-1342.6,0.00020547,2]
[315392176,1709004645987,-783.19,0.00020547,2]
[315392177,1709004645997,-9602.6665649,0.00020547,3]
[315392178,1709004646006,-537.61,0.00020547,2]
[315392179,1709004646015,-563.31,0.00020547,2]
[315392180,1709004646025,-9006.86,0.00020547,2]
[315392181,1709004646035,-1277.53,0.00020547,2]
[315392182,1709004646045,-257.70486655,0.00020547,2]
[315392183,1709004646054,-3047.32,0.00020547,2]
[315392184,1709004646063,-2308.41,0.00020547,2]
[315392185,1709004646073,-2245.85,0.00020547,2]
[315392186,1709004646082,-715.87,0.00020547,2]
[315392187,1709004646091,-1757.64,0.00020547,2]
[315392188,1709004646100,-500.0,0.00020547,2]
[315392189,1709004646109,-500.0,0.00020547,2]
[315392190,1709004646118,-16325.28,0.00020547,2]
[315392191,1709004646129,-2110.14,0.00020547,2]
[315392192,1709004646138,-500.0,0.00020547,2]
[315392193,1709004646147,-1864.2,0.00020547,2]
[315392194,1709004646158,-1080.31,0.00020547,2]
[315392195,1709004646167,-500.0,0.00020547,2]
[315392196,1709004646177,-551.86,0.00020547,2]
[315392197,1709004646186,-1064.93,0.00020547,2]
[315392198,1709004646195,-1746.04,0.00020547,2]
[315392199,1709004646204,-6308.39,0.00020547,2]
[315392200,1709004646213,-500.0,0.00020547,2]
[315392201,1709004646223,-15828.98,0.00020547,2]
[315392202,1709004646232,-500.0,0.00020547,2]
[315392203,1709004646241,-3154.11,0.00020547,2]
[315392204,1709004646250,-500.0,0.00020547,2]
[315392205,1709004646259,-3387.94,0.00020547,2]
[315392206,1709004646269,-813.05,0.00020547,2]
[315392207,1709004646278,-1175.4,0.00020547,2]
[315392208,1709004646287,-2843.33,0.00020547,2]
[315392209,1709004646296,-942.32,0.00020547,2]
[315392210,1709004646306,-1168.45,0.00020547,2]
[315392211,1709004646316,-906.42,0.00020547,2]
[315392212,1709004646326,-200.0,0.00020557,2]
[315392213,1709004646335,-1320.04407207,0.00020595,2]
[315392214,1709004646345,-1596.90371537,0.00020619,2]
[315392215,1709004646354,-1000.0,0.00020676,5]
[315392216,1709004646363,-511.77108199,0.00020676,2]
[315392217,1709004646372,-1000.0,0.00020676,5]
[315392218,1709004646381,-26268.28762352,0.00020676,2]
[315392219,1709004646390,-5589.88821428,0.00020676,2]
[315392220,1709004646399,-522.38313996,0.00020676,2]
[315392221,1709004646408,-153.07159358,0.00020676,2]
[315392222,1709004646421,-1000.0,0.00020676,5]
[315392223,1709004646430,-426.77878779,0.00020676,2]
[315392224,1709004646438,-1001.2182654,0.00020677,2]
[315392225,1709004646447,-982.26086015,0.00020678,2]
[315392226,1709004646457,-8020.9445947,0.00020679,2]
[315392227,1709004646467,-5000.0,0.00020695,5]
[315392228,1709004646476,-50000.0,0.00020695,3]
[315392229,1709004646485,-52730.81451415,0.00020695,3]
[315392230,1709004646497,-5000.0,0.00020695,5]
[315392231,1709004646507,-47352.01172255,0.00020695,3]
[315392232,1709004646632,-2647.98827745,0.00020695,3]
[315392233,1709004646641,-53638.75695326,0.00020695,3]
[315392234,1709004646650,-5000.0,0.00020695,5]
[315392235,1709004646659,-29308.64448397,0.00020695,4]
[315392236,1709004646669,-2482.937354,0.00020695,2]
[315392237,1709004646678,-2482.937354,0.00020695,2]
[315392238,1709004646687,-191.779539,0.00020695,2]
[315392239,1709004646696,-700.419083,0.00020695,2]
[315392240,1709004646705,-700.419083,0.00020695,2]
[315392241,1709004646714,-5000.0,0.00020695,5]
[315392242,1709004646723,-151.0,0.00020695,2]
[315392243,1709004646732,-151.0,0.00020695,2]
[315392244,1709004646741,-3995.26216099,0.00020695,4]
[315392245,1709004646752,-6682.47467051,0.00020695,4]
[315392246,1709004647002,-500.0,0.00019178,2]
[315392247,1709004647012,-500.0,0.00019452,2]
[315392248,1709004647022,-834.12924675,0.00019716,3]
[315392249,1709004647035,-6395.65730396,0.00019716,3]
[315392250,1709004647046,-319.26368311,0.00019716,3]
[315392371,1709005832015,-155.18466976,0.0001807,2]
[315392372,1709005832025,-168.67438004,0.00018071,2]
[315392373,1709005832035,-300.0,0.00018084,2]
[315392374,1709005832044,-24900.0,0.00018085,2]
[315392375,1709005832053,-155.18466976,0.00018171,2]
[315392376,1709005832063,-201.90047091,0.000182,2]
[315392377,1709005832072,-201.9004709,0.000182,2]
[315392378,1709005832081,-1435.33661436,0.000188,3]
[315392379,1709005832093,-297.2170917,0.000188,3]
[315392380,1709005832102,-1939.02879628,0.000189,2]
[315392381,1709005832111,-500.0,0.00018999,2]
[315392382,1709005832120,-20221.6593481,0.00019,4]
[315392383,1709005832130,-500.0,0.00019054,2]
[315392384,1709005832139,-500.0,0.00019109,2]
[315392385,1709005832148,-500.0,0.00019164,2]
[315392386,1709005832158,-376.0,0.00019168,3]
[315392387,1709005832167,-188.0,0.00019168,3]
[315392388,1709005832176,-564.05,0.00019168,3]
[315392389,1709005832185,-155.42848835,0.00019176,2]
[315392390,1709005832195,-281.55953211,0.00019176,2]
[315392391,1709005832205,-159.80558045,0.00019176,2]
[315392392,1709005832214,-632.91253937,0.00019176,2]
[315392393,1709005832223,-1213.56535489,0.00019177,2]
[315392394,1709005832232,-1213.5532049,0.00019177,2]
[315392395,1709005832241,-500.0,0.00019178,2]
[315392396,1709005832250,-500.0,0.00019178,2]
[315392397,1709005832259,-500.0,0.00019178,2]
[315392398,1709005832268,-500.0,0.00019178,2]
[315392399,1709005832276,-500.52235363,0.00019178,2]
[315392400,1709005832285,-151.0,0.00019178,2]
[315392401,1709005832294,-500.0,0.00019178,2]
[315392402,1709005832303,-500.0,0.00019178,2]
[315392403,1709005832314,-500.0,0.00019178,2]
[315392404,1709005832323,-613.32,0.00019178,2]
[315392405,1709005832332,-1021.92,0.00019178,2]
[315392406,1709005832341,-500.0,0.00019178,2]
[315392407,1709005832350,-500.0,0.00019178,2]
[315392408,1709005832360,-384.82319129,0.00019178,2]
[315392409,1709005832369,-500.0,0.00019178,2]
[315392410,1709005832378,-500.0,0.00019178,2]
[315392411,1709005832387,-500.0,0.00019178,2]
[315392412,1709005832397,-500.0,0.00019178,2]
[315392413,1709005832406,-500.0,0.00019178,2]
[315392414,1709005832414,-500.0,0.00019178,2]
[315392415,1709005832424,-500.0,0.00019178,2]
[315392416,1709005832433,-2724.86,0.00019178,2]
[315392417,1709005832442,-1168.45,0.00019178,2]
[315392418,1709005832451,-508.29,0.00019178,2]
[315392419,1709005832460,-500.0,0.00019178,2]
[315392420,1709005832469,-500.0,0.00019178,2]
[315392421,1709005832478,-1815.24,0.00019178,2]
[315392422,1709005832487,-583.40486737,0.00019178,2]
[315392423,1709005832497,-522.98876347,0.00019178,2]
[315392424,1709005832506,-634.77,0.00019178,2]
[315392425,1709005832515,-573.44249112,0.00019178,2]
[315392426,1709005832524,-500.0,0.00019178,2]
[315392427,1709005832532,-500.0,0.00019178,2]
[315392428,1709005832542,-311.25723657,0.00019178,2]
[315392429,1709005832551,-615.27150898,0.00019178,2]
[315392430,1709005832560,-500.0,0.00019178,2]
[315392431,1709005832569,-500.0,0.00019178,2]
[315392432,1709005832578,-500.0,0.00019178,2]
[315392433,1709005832587,-500.0,0.00019178,2]
[315392434,1709005832596,-502.13809935,0.00019178,2]
[315392435,1709005832605,-500.0,0.00019178,2]
[315392436,1709005832614,-500.0,0.00019178,2]
[315392437,1709005832623,-500.0,0.00019178,2]
[315392438,1709005832632,-500.0,0.00019178,2]
[315392439,1709005832641,-500.0,0.00019178,2]
[315392440,1709005832650,-500.0,0.00019178,2]
[315392441,1709005832659,-502.85792086,0.00019178,2]
[315392442,1709005832668,-501.9436783,0.00019178,2]
[315392443,1709005832677,-1080.31,0.00019178,2]
[315392444,1709005832687,-500.0,0.00019178,2]
[315392445,1709005832696,-500.0,0.00019178,2]
[315392446,1709005832705,-501.79239034,0.00019178,2]
[315392447,1709005832714,-500.17905567,0.00019178,2]
[315392448,1709005832723,-500.0,0.00019178,2]
[315392449,1709005832732,-501.70867165,0.00019178,2]
[315392450,1709005832742,-501.88399839,0.00019178,2]
[315392451,1709005832752,-1726.24,0.00019178,2]
[315392452,1709005832763,-501.98121851,0.00019178,2]
[315392453,1709005832772,-500.0,0.00019178,2]
[315392454,1709005832781,-500.0,0.00019178,2]
[315392455,1709005832791,-500.0,0.00019178,2]
[315392456,1709005832800,-500.0,0.00019178,2]
[315392457,1709005832809,-501.95643743,0.00019178,2]
[315392458,1709005832818,-500.0,0.00019178,2]
[315392459,1709005832828,-500.0,0.00019178,2]
[315392460,1709005832837,-500.0,0.00019178,2]
[315392461,1709005832847,-500.0,0.00019178,2]
[315392462,1709005832857,-500.0,0.00019178,2]
[315392463,1709005832867,-1398.22,0.00019178,2]
[315392464,1709005832876,-591.67167096,0.00019178,2]
[315392465,1709005832886,-500.0,0.00019178,2]
[315392466,1709005832896,-500.0,0.00019178,2]
[315392467,1709005832905,-500.0,0.00019178,2]
[315392468,1709005832915,-511.86785933,0.00019178,2]
[315392469,1709005832924,-500.0,0.00019178,2]
[315392470,1709005832934,-500.0,0.00019178,2]
[315392471,1709005832944,-500.0,0.00019178,2]
[315392472,1709005832954,-500.0,0.00019178,2]
[315392473,1709005832964,-500.0,0.00019178,2]
[315392474,1709005832973,-219.97376393,0.00019178,2]
[315392475,1709005832983,-452.01515185,0.00019178,2]
[315392476,1709005832992,-500.0,0.00019178,2]
[315392477,1709005833002,-500.0,0.00019178,2]
[315392478,1709005833013,-500.0,0.00019178,2]
[315392479,1709005833022,-500.0,0.00019178,2]
[315392480,1709005833032,-502.71268128,0.00019178,2]
[315392481,1709005833042,-500.0,0.00019178,2]
[315392482,1709005833053,-500.0,0.00019178,2]
[315392483,1709005833067,-500.0,0.00019178,2]
[315392484,1709005833078,-500.0,0.00019178,2]
[315392485,1709005833089,-500.0,0.00019178,2]
[315392486,1709005833101,-1219.33,0.00019178,2]
[315392487,1709005833111,-500.0,0.00019178,2]
[315392488,1709005833122,-308.15816311,0.00019178,2]
[315392489,1709005833133,-500.0,0.00019178,2]
[315392490,1709005833143,-500.0,0.00019178,2]
[315392491,1709005833153,-500.0,0.00019178,2]
[315392492,1709005833163,-503.95237384,0.00019178,2]
[315392493,1709005833175,-1245.29,0.00019178,2]
[315392494,1709005833185,-582.41093118,0.00019178,2]
[315392495,1709005833194,-500.0,0.00019178,2]
[315392496,1709005833204,-197.79317948,0.00019178,2]
[315392497,1709005833213,-500.0,0.00019178,2]
[315392498,1709005833222,-500.0,0.00019178,2]
[315392499,1709005833232,-500.0,0.00019178,2]
[315392500,1709005833242,-500.0,0.00019178,2]
[315392501,1709005833251,-500.0,0.00019178,2]
[315392502,1709005833261,-500.0,0.00019178,2]
[315392503,1709005833271,-500.0,0.00019178,2]
[315392504,1709005833280,-558.73941964,0.00019178,2]
[315392505,1709005833289,-500.0,0.00019178,2]
[315392506,1709005833299,-500.0,0.00019178,2]
[315392507,1709005833310,-501.22080587,0.00019178,2]
[315392508,1709005833322,-500.0,0.00019178,2]
[315392509,1709005833332,-500.0,0.00019178,2]
[315392510,1709005833341,-982.39,0.00019178,2]
[315392511,1709005833351,-500.77842844,0.00019178,2]
[315392512,1709005833360,-816.34,0.00019178,2]
[315392513,1709005833370,-500.0,0.00019178,2]
[315392514,1709005833379,-1453.06,0.00019178,2]
[315392515,1709005833388,-616.29533652,0.00019178,2]
[315392516,1709005833398,-500.0,0.00019178,2]
[315392517,1709005833408,-500.0,0.00019178,2]
[315392518,1709005833418,-945.83,0.00019178,2]
[315392519,1709005833427,-500.0,0.00019178,2]
[315392520,1709005833436,-500.0,0.00019178,2]
[315392521,1709005833446,-500.0,0.00019178,2]
[315392522,1709005833455,-500.0,0.00019178,2]
[315392523,1709005833465,-500.36013497,0.00019178,2]
[315392524,1709005833474,-500.0,0.00019178,2]
[315392525,1709005833483,-587.8,0.00019178,2]
[315392526,1709005833492,-585.33,0.00019178,2]
[315392527,1709005833502,-500.0,0.00019178,2]
[315392528,1709005833511,-613.06489533,0.00019178,2]
[315392529,1709005833521,-500.0,0.00019178,2]
[315392530,1709005833530,-500.0,0.00019178,2]
[315392531,1709005833539,-501.23926151,0.00019178,2]
[315392532,1709005833548,-480.33059787,0.00019178,2]
[315392533,1709005833565,-20.588406,0.00019178,2]
[315392534,1709005833575,-501.80447594,0.00019178,2]
[315392535,1709005833584,-1393.67,0.00019178,2]
[315392536,1709005833593,-537.63645987,0.00019178,2]
[315392537,1709005833602,-500.0,0.00019178,2]
[315392538,1709005833612,-501.03416332,0.00019178,2]
[315392539,1709005833621,-9825.67,0.00019178,2]
[315392540,1709005833631,-500.0,0.00019178,2]
[315392541,1709005833640,-500.0,0.00019178,2]
[315392542,1709005833648,-504.52087056,0.00019178,2]
[315392543,1709005833658,-500.0,0.00019178,2]
[315392544,1709005833667,-500.0,0.00019178,2]
[315392545,1709005833676,-500.0,0.00019178,2]
[315392546,1709005833685,-500.0,0.00019178,2]
[315392547,1709005833694,-500.0,0.00019178,2]
[315392548,1709005833703,-2341.16,0.00019178,2]
[315392549,1709005833713,-747.0,0.00019178,2]
[315392550,1709005833723,-3179.82,0.00019178,2]
[315392551,1709005833733,-2473.14,0.00019178,2]
[315392552,1709005833743,-507.4,0.00019178,2]
[315392553,1709005833752,-500.0,0.00019178,2]
[315392554,1709005833764,-421.73071136,0.00019178,2]
[315392555,1709005833774,-500.0,0.00019178,2]
[315392556,1709005833783,-1832.08,0.00019178,2]
[315392557,1709005833793,-500.0,0.00019178,2]
[315392558,1709005833803,-500.0,0.00019178,2]
[315392559,1709005833813,-500.0,0.00019178,2]
[315392560,1709005833823,-500.0,0.00019178,2]
[315392561,1709005833832,-500.0,0.00019178,2]
[315392562,1709005833843,-505.26600753,0.00019178,2]
[315392563,1709005833853,-500.0,0.00019178,2]
[315392564,1709005833862,-500.0,0.00019178,2]
[315392565,1709005833871,-500.0,0.00019178,2]
[315392566,1709005833882,-1000.0,0.00019178,2]
[315392567,1709005833891,-500.0,0.00019178,2]
[315392568,1709005833900,-500.0,0.00019178,2]
[315392569,1709005833910,-500.0,0.00019178,2]
[315392570,1709005833919,-500.0,0.00019178,2]
[315392571,1709005833929,-500.0,0.00019178,2]
[315392572,1709005833938,-500.0,0.00019178,2]
[315392573,1709005833948,-2199.37,0.00019178,2]
[315392574,1709005833957,-269.28352699,0.00019178,2]
[315392575,1709005833966,-501.03495227,0.00019178,2]
[315392576,1709005833976,-500.0,0.00019178,2]
[315392577,1709005833985,-500.0,0.00019178,2]
[315392578,1709005833994,-500.0,0.00019178,2]
[315392579,1709005834003,-500.0,0.00019178,2]
[315392580,1709005834013,-500.0,0.00019178,2]
[315392581,1709005834022,-567.92043662,0.00019178,2]
[315392582,1709005834031,-17015.61,0.00019178,2]
[315392583,1709005834040,-500.0,0.00019178,2]
[315392584,1709005834049,-500.0,0.00019178,2]
[315392585,1709005834061,-500.0,0.00019178,2]
[315392586,1709005834071,-500.0,0.00019178,2]
[315392587,1709005834080,-500.0,0.00019178,2]
[315392588,1709005834090,-514.94015207,0.00019178,2]
[315392589,1709005834099,-500.0,0.00019178,2]
[315392590,1709005834108,-500.48590517,0.00019178,2]
[315392591,1709005834118,-500.8056287,0.00019178,2]
[315392592,1709005834127,-500.0,0.00019178,2]
[315392593,1709005834137,-500.0,0.00019178,2]
[315392594,1709005834148,-1945.26,0.00019178,2]
[315392595,1709005834158,-500.0,0.00019178,2]
[315392596,1709005834168,-500.0,0.00019178,2]
[315392597,1709005834179,-500.0,0.00019178,2]
[315392598,1709005834190,-500.0,0.00019178,2]
[315392599,1709005834201,-500.93234217,0.00019178,2]
[315392600,1709005834290,-500.0,0.00019178,2]
[315392601,1709005834308,-500.23477848,0.00019178,2]
[315392602,1709005834318,-532.72803877,0.00019178,2]
[315392603,1709005834328,-500.0,0.00019178,2]
[315392604,1709005834337,-500.0,0.00019178,2]
[315392605,1709005834348,-500.56816977,0.00019178,2]
[315392606,1709005834359,-1111.23,0.00019178,2]
[315392607,1709005834368,-500.0,0.00019178,2]
[315392608,1709005834379,-500.0,0.00019178,2]
[315392609,1709005834389,-574.95,0.00019178,2]
[315392610,1709005834398,-500.0,0.00019178,2]
[315392611,1709005834407,-2859.12474181,0.00019178,2]
[315392647,1709005839360,-3723.54525819,0.00019178,2]
[315392649,1709005839369,-500.0,0.00019178,2]
[315392651,1709005839379,-500.0,0.00019178,2]
[315392653,1709005839388,-500.0,0.00019178,2]
[315392655,1709005839397,-1818.9,0.00019178,2]
[315392657,1709005839406,-3279.01,0.00019178,2]
[315392659,1709005839416,-468.65722539,0.00019178,2]
[315392661,1709005839425,-500.0,0.00019178,2]
[315392663,1709005839435,-500.0,0.00019178,2]
[315392666,1709005839447,-746.12,0.00019178,2]
[315392670,1709005839476,-746.12,0.00019178,2]
[315392673,1709005839492,-746.12,0.00019178,2]
[315392675,1709005839506,-500.0,0.00019178,2]
[315392678,1709005839522,-502.24533247,0.00019178,2]
[315392680,1709005839534,-500.0,0.00019178,2]
[315392682,1709005839546,-500.0,0.00019178,2]
[315392685,1709005839560,-501.01152787,0.00019178,2]
[315392687,1709005839575,-347.18042852,0.00019178,2]
[315392690,1709005839588,-16501.42,0.00019178,2]
[315392692,1709005839602,-500.0,0.00019178,2]
[315392694,1709005839615,-500.0,0.00019178,2]
[315392697,1709005839628,-848.4,0.00019178,2]
[315392699,1709005839642,-500.0,0.00019178,2]
[315392701,1709005839653,-2657.57,0.00019178,2]
[315392704,1709005839664,-500.0,0.00019178,2]
[315392706,1709005839676,-500.74835201,0.00019178,2]
[315392708,1709005839689,-500.0,0.00019178,2]
[315392711,1709005839701,-500.0,0.00019178,2]
[315392713,1709005839712,-3531.35,0.00019178,2]
[315392715,1709005839724,-500.0,0.00019178,2]
[315392718,1709005839737,-500.49030211,0.00019178,2]
[315392720,1709005839752,-500.0,0.00019178,2]
[315392722,1709005839765,-2841.18,0.00019178,2]
[315392724,1709005839775,-500.0,0.00019178,2]
[315392727,1709005839786,-500.0,0.00019178,2]
[315392729,1709005839800,-941.45,0.00019178,2]
[315392731,1709005839813,-504.08156979,0.00019178,2]
[315392734,1709005839824,-169.574184,0.00019178,2]
[315392736,1709005839836,-166.666666,0.00019178,2]
[315392737,1709005839852,-164.972699,0.00019178,2]
[315392739,1709005839864,-334.7806237,0.00019218,2]
[315392741,1709005839875,-1479.6632127,0.00019352,2]
[315392742,1709005839889,-8843.5,0.00019442,3]
[315392743,1709005839901,-1519.40144155,0.00019451,2]